bitfinex-derivatives/quotes_BTCF0:USTF0_20240907
["timestamp","ask_amount","ask_price","bid_price","bid_amount"]
[1725698908852,0.36758466,54331.0,54330.0,0.092043]
[1725698909247,0.092042,54331.0,54330.0,0.092043]
[1725698909446,0.36721519,54331.0,54330.0,0.092043]
[1725698909646,0.37642449,54331.0,54330.0,0.092043]
[1725698910456,0.37642449,54331.0,54328.0,0.09186173]
[1725698910658,0.36721519,54331.0,54327.0,0.09186173]
[1725698910958,0.3764245,54331.0,54327.0,0.09186173]
[1725698911163,0.00920931,54330.0,54327.0,0.09186173]
[1725698911459,0.28649561,54329.0,54326.0,0.09186173]
[1725698911662,0.00920931,54328.0,54327.0,0.092049]
[1725698912146,0.00920931,54329.0,54327.0,0.092049]
[1725698912347,0.00920931,54328.0,54327.0,0.092049]
[1725698912552,0.282047,54328.0,54326.0,0.09186173]
[1725698912753,0.03223277,54327.0,54326.0,0.09186173]
[1725698913053,0.03223277,54327.0,54326.0,0.2321207]
[1725698913656,0.282047,54328.0,54326.0,0.2321207]
[1725698913954,0.282047,54328.0,54326.0,0.09186173]
[1725698914259,0.36634248,54327.0,54325.0,0.09186173]
[1725698914458,0.39857532,54327.0,54325.0,0.09186173]
[1725698915554,0.03223284,54326.0,54325.0,0.09186173]
[1725698915762,0.03223284,54326.0,54325.0,0.23212142]
[1725698915958,0.39904892,54326.0,54325.0,0.23212142]
[1725698916460,0.37602546,54326.0,54325.0,0.23212142]
[1725698916657,0.28397546,54326.0,54325.0,0.23212142]
[1725698916859,0.28397546,54326.0,54325.0,0.32417342]
[1725698917065,0.27476608,54326.0,54325.0,0.23231169]
[1725698917253,0.30699899,54326.0,54325.0,0.23231169]
[1725698917448,0.03223291,54326.0,54325.0,0.23231169]
[1725698917652,0.27780042,54328.0,54326.0,0.09205]
[1725698917862,0.00920917,54327.0,54326.0,0.09205]
[1725698918064,0.28565311,54327.0,54326.0,0.32429578]
[1725698918260,0.00920917,54327.0,54326.0,0.32429578]
[1725698918456,0.00920917,54327.0,54326.0,0.23230611]
[1725698918654,0.28565311,54327.0,54326.0,0.23230611]
[1725698919155,0.28565311,54327.0,54326.0,0.32429774]
[1725698919361,0.28565311,54327.0,54326.0,0.23230611]
[1725698920266,0.37770211,54327.0,54326.0,0.2322536]
[1725698920561,0.27644394,54327.0,54325.0,0.09199749]
[1725698920764,0.28565336,54327.0,54325.0,0.09199749]
[1725698921257,0.00920942,54326.0,54325.0,0.09199749]
[1725698921458,0.092052,54325.0,54324.0,0.09199749]
[1725698921657,0.29126142,54325.0,54324.0,0.23226208]
[1725698921857,0.29126142,54325.0,54324.0,0.09199749]
[1725698922068,0.092054,54324.0,54323.0,0.09199749]
[1725698922258,0.19906342,54324.0,54323.0,0.23226276]
[1725698922458,0.47675187,54324.0,54323.0,0.23226276]
[1725698923868,0.46754245,54324.0,54323.0,0.23226276]
[1725698924068,0.47675225,54324.0,54323.0,0.23226276]
[1725698925266,0.47675225,54324.0,54323.0,0.09199749]
[1725698925565,0.092055,54323.0,54322.0,0.09199749]
[1725698925770,0.1012648,54323.0,54322.0,0.23226333]
[1725698926070,0.56682567,54323.0,54322.0,0.23226333]
[1725698927171,0.56682567,54323.0,54322.0,0.09199749]
[1725698927670,0.56682567,54323.0,54321.0,0.09199749]
[1725698927671,0.092057,54322.0,54321.0,0.09199749]
[1725698927868,0.1012668,54322.0,54321.0,0.23226583]
[1725698928061,0.37748495,54322.0,54321.0,0.23226583]
[1725698928757,0.37748495,54322.0,54321.0,0.09199749]
[1725698929057,0.28542795,54322.0,54320.0,0.07358844]
[1725698929267,0.1992098,54321.0,54320.0,0.07358844]
[1725698929461,0.1992098,54321.0,54319.0,0.07358844]
[1725698929662,0.1012698,54320.0,54319.0,0.07358844]
[1725698930473,0.1012698,54320.0,54316.0,0.092067]
[1725698930474,0.09206,54320.0,54318.0,0.07358844]
[1725698930770,0.10127135,54320.0,54319.0,0.07358844]
[1725698931463,0.10127107,54320.0,54319.0,0.07358844]
[1725698931770,0.10127107,54320.0,54316.0,0.092067]
[1725698931963,0.00921107,54319.0,54316.0,0.092067]
[1725698932167,0.00921107,54318.0,54316.0,0.092067]
[1725698932368,0.092063,54319.0,54316.0,0.092067]
[1725698932369,0.00921107,54317.0,54316.0,0.092067]
[1725698935171,0.092067,54316.0,54314.0,0.09199749]
[1725698935372,0.00921107,54315.0,54314.0,0.092071]
[1725698935667,0.00921107,54315.0,54314.0,0.18406849]
[1725698936580,0.20128007,54315.0,54314.0,0.092071]
[1725698937184,0.192069,54315.0,54314.0,0.092071]
[1725698937380,0.20128025,54315.0,54314.0,0.092071]
[1725698938595,0.20128025,54315.0,54314.0,0.18406849]
[1725698938783,0.10128025,54315.0,54314.0,0.18406849]
[1725698942176,0.10128025,54315.0,54314.0,0.32435095]
[1725698942875,0.092069,54315.0,54314.0,0.32435095]
[1725698943378,0.10127992,54315.0,54314.0,0.23235346]
[1725698943683,0.05522547,54315.0,54314.0,0.23235346]
[1725698944969,0.14665861,54346.0,54314.0,0.33235346]
[1725698945176,0.092047,54329.0,54328.0,0.092045]
[1725698945379,0.092047,54329.0,54324.0,0.0488]
[1725698945380,0.2755962,54326.0,54324.0,0.0488]
[1725698945682,0.00921085,54325.0,54324.0,0.140854]
[1725698945881,0.28480705,54325.0,54324.0,0.140854]
[1725698948174,0.28480705,54325.0,54324.0,0.14553147]
[1725698948779,0.28480705,54325.0,54324.0,0.140854]
[1725698949588,0.2755962,54325.0,54324.0,0.140854]
[1725698950087,0.28480538,54325.0,54324.0,0.140854]
[1725698951683,0.0483,54336.0,54335.0,0.092035]
[1725698951879,0.00470436,54337.0,54336.0,0.092033]
[1725698952089,0.092032,54337.0,54336.0,0.092033]
[1725698952386,0.36964721,54337.0,54336.0,0.16542501]
[1725698952587,0.36964721,54337.0,54336.0,0.092033]
[1725698953680,0.36964721,54337.0,54336.0,0.14706938]
[1725698953885,0.36964721,54337.0,54336.0,0.092033]
[1725698954280,0.36964721,54337.0,54336.0,0.14705297]
[1725698954584,0.46761521,54337.0,54334.0,0.05501997]
[1725698954788,0.55964821,54337.0,54333.0,0.14705797]
[1725698955182,0.55964821,54337.0,54334.0,0.05501997]
[1725698955385,0.55964821,54337.0,54333.0,0.14705797]
[1725698955590,0.55964821,54337.0,54334.0,0.092037]
[1725698956089,0.56428982,54337.0,54335.0,0.092034]
[1725698956476,0.47225682,54337.0,54335.0,0.092034]
[1725698959597,0.00920843,54336.0,54335.0,0.092034]
[1725698959996,0.28500351,54336.0,54335.0,0.092034]
[1725698962398,0.27579508,54336.0,54335.0,0.092034]
[1725698962593,0.28500335,54336.0,54335.0,0.092034]
[1725698963698,0.27579508,54336.0,54335.0,0.092034]
[1725698965997,0.28500351,54336.0,54335.0,0.092034]
[1725698971799,0.28500351,54336.0,54335.0,0.14705397]
[1725698972397,0.28500351,54336.0,54335.0,0.14708217]
[1725698973210,0.28500351,54336.0,54335.0,0.092034]
[1725698973699,0.30802413,54336.0,54335.0,0.092034]
[1725698974003,0.28500351,54336.0,54335.0,0.092034]
[1725698974206,0.27579508,54336.0,54335.0,0.16542601]
[1725698974608,0.30802446,54336.0,54335.0,0.16542601]
[1725698974907,0.30802446,54336.0,54335.0,0.092034]
[1725698975108,0.28500347,54336.0,54335.0,0.092034]
[1725698975307,0.28500347,54336.0,54335.0,0.16542601]
[1725698975710,0.30802463,54336.0,54335.0,0.16542601]
[1725698975903,0.40802463,54336.0,54335.0,0.16542601]
[1725698977108,0.38500347,54336.0,54335.0,0.16542601]
[1725698977301,0.38500347,54336.0,54335.0,0.092034]
[1725698977611,0.38500347,54336.0,54335.0,0.16542601]
[1725698977809,0.38500347,54336.0,54335.0,0.092034]
[1725698978402,0.38500347,54336.0,54334.0,0.07339201]
[1725698978403,0.47703647,54336.0,54334.0,0.07339201]
[1725698978707,0.00920848,54335.0,54334.0,0.07348486]
[1725698978913,0.00920848,54335.0,54331.0,0.18384662]
[1725698979102,0.02302123,54332.0,54331.0,0.18384662]
[1725698979305,0.03222971,54332.0,54331.0,0.32409279]
[1725698979709,0.03222971,54332.0,54331.0,0.32415129]
[1725698979910,0.03222971,54332.0,54331.0,0.23228617]
[1725698980306,0.00920848,54332.0,54331.0,0.23228617]
[1725698980614,0.00920848,54332.0,54331.0,0.23228232]
[1725698980809,0.00920848,54332.0,54331.0,0.32416001]
[1725698981206,0.00920848,54332.0,54331.0,0.23228232]
[1725698981414,0.192033,54336.0,54332.0,0.09204]
[1725698981714,0.28619553,54335.0,54333.0,0.23214177]
[1725698982016,0.00920833,54334.0,54333.0,0.09189945]
[1725698982205,0.00920833,54334.0,54333.0,0.23214242]
[1725698982405,0.28550347,54334.0,54333.0,0.23214242]
[1725698982807,0.092038,54333.0,54332.0,0.09189945]
[1725698983006,0.092038,54333.0,54320.0,0.12806829]
[1725698983007,0.092042,54331.0,54329.0,0.09189945]
[1725698983311,0.32968332,54330.0,54329.0,0.09189945]
[1725698983506,0.32968332,54330.0,54329.0,0.23215098]
[1725698983808,0.32968332,54330.0,54325.0,0.15656795]
[1725698983809,0.32968332,54330.0,54328.0,0.09189945]
[1725698984013,0.00920833,54329.0,54328.0,0.092047]
[1725698984311,0.28436837,54329.0,54328.0,0.23229973]
[1725698984516,0.28436837,54329.0,54328.0,0.092047]
[1725698985104,0.28436837,54329.0,54328.0,0.32421339]
[1725698985306,0.28436837,54329.0,54328.0,0.092047]
[1725698986713,0.37641337,54329.0,54326.0,0.09191057]
[1725698986912,0.10920833,54328.0,54326.0,0.09191057]
[1725698987117,0.00920833,54327.0,54326.0,0.18396057]
[1725698987421,0.28547959,54327.0,54326.0,0.32421659]
[1725698987829,0.27627126,54327.0,54326.0,0.32421659]
[1725698988129,0.28548054,54327.0,54326.0,0.32421659]
[1725698988310,0.28548054,54327.0,54326.0,0.18396057]
[1725698988517,0.28548054,54327.0,54326.0,0.32421697]
[1725698988713,0.28548054,54327.0,54326.0,0.18396057]
[1725698989020,0.28548054,54327.0,54326.0,0.09205]
[1725698992220,0.38548054,54327.0,54326.0,0.09205]
[1725698994828,0.28548054,54327.0,54326.0,0.09205]
[1725698996721,0.23943624,54327.0,54326.0,0.3243518]
[1725698997016,0.14778173,54327.0,54326.0,1.67876975]
[1725698997217,0.02301996,54330.0,54329.0,0.092045]
[1725698997415,0.00920786,54330.0,54329.0,0.44238466]
[1725698997625,0.00920786,54330.0,54329.0,1.5765418]
[1725698997815,0.00920786,54330.0,54329.0,1.68662016]
[1725698998020,0.00920786,54330.0,54329.0,1.5765418]
[1725698998220,0.0322274,54330.0,54329.0,1.5765418]
[1725698998528,0.02301954,54331.0,54330.0,0.184086]
[1725698998730,0.0322273,54331.0,54330.0,0.62639613]
[1725698999025,0.0322273,54331.0,54330.0,1.6684978]
[1725698999026,0.00920776,54331.0,54330.0,1.6684978]
[1725699000033,0.02301934,54331.0,54330.0,1.77854261]
[1725699000223,0.0322271,54331.0,54330.0,1.77852468]
[1725699000628,1e-07,54331.0,54330.0,1.93121132]
[1725699000816,0.092014,54348.0,54345.0,0.092017]
[1725699001133,0.37813008,54347.0,54346.0,0.05500685]
[1725699001624,0.10122209,54347.0,54345.0,0.14702385]
[1725699001825,0.36892299,54347.0,54345.0,0.14702385]
[1725699002433,0.36892299,54347.0,54345.0,0.092017]
[1725699004537,0.092016,54346.0,54345.0,0.092017]
[1725699004832,0.36969322,54346.0,54345.0,0.092017]
[1725699005037,0.36969322,54346.0,54345.0,0.14702385]
[1725699005528,0.36969322,54346.0,54345.0,0.092017]
[1725699008730,0.37890013,54346.0,54345.0,0.092017]
[1725699008929,0.092021,54343.0,54341.0,0.05500685]
[1725699009133,0.03222443,54342.0,54341.0,0.14703185]
[1725699009333,0.12424743,54342.0,54341.0,0.092025]
[1725699009639,0.03222443,54342.0,54341.0,0.092025]
[1725699010234,0.03222443,54342.0,54339.0,0.1]
[1725699010235,0.02301752,54343.0,54342.0,0.092023]
[1725699010431,0.03222446,54343.0,54342.0,0.14694932]
[1725699010832,0.10122794,54343.0,54342.0,0.14694932]
[1725699011236,0.12424531,54343.0,54342.0,0.14694932]
[1725699012034,0.12424531,54343.0,54342.0,0.092023]
[1725699013332,0.10122794,54343.0,54342.0,0.092023]
[1725699014141,0.12424531,54343.0,54342.0,0.092023]
[1725699015337,0.10122794,54343.0,54342.0,0.092023]
[1725699018338,0.10592067,54343.0,54342.0,0.092023]
[1725699019136,0.10592067,54343.0,54342.0,0.14694932]
[1725699019329,0.10592067,54343.0,54342.0,0.092023]
[1725699022842,0.10592067,54343.0,54342.0,0.16536547]
[1725699023033,0.10592067,54343.0,54342.0,0.092023]
[1725699023233,0.10592067,54343.0,54342.0,0.16536547]
[1725699024344,0.10592067,54343.0,54342.0,0.092023]
[1725699025948,0.09671373,54343.0,54342.0,0.092023]
[1725699026150,0.10592025,54343.0,54342.0,0.092023]
[1725699027744,0.10592019,54343.0,54342.0,0.092023]
[1725699029163,0.11512666,54343.0,54342.0,0.092023]
[1725699031459,0.12433312,54343.0,54342.0,0.092023]
[1725699031651,0.11512666,54343.0,54342.0,0.092023]
[1725699032162,0.02310566,54343.0,54342.0,0.092023]
[1725699032553,0.02310566,54343.0,54342.0,0.14706681]
[1725699032762,0.01841293,54343.0,54342.0,0.14706681]
[1725699033266,0.01841293,54343.0,54342.0,0.14709873]
[1725699033962,0.01841293,54343.0,54342.0,0.092023]
[1725699034163,0.01841293,54343.0,54342.0,0.23223319]
[1725699037569,0.01841293,54343.0,54342.0,0.23689429]
[1725699037758,0.11043393,54343.0,54342.0,0.23223319]
[1725699037960,0.01841293,54343.0,54342.0,0.23223319]
[1725699038156,0.04142908,54343.0,54342.0,0.23223319]
[1725699038557,0.04142908,54343.0,54342.0,0.23223429]
[1725699038862,0.00920647,54343.0,54342.0,0.23223429]
[1725699039264,0.04142836,54343.0,54342.0,0.23223429]
[1725699039563,0.13344936,54343.0,54342.0,0.18381879]
[1725699039958,0.11043372,54343.0,54342.0,0.092023]
[1725699041866,0.10122725,54343.0,54342.0,0.092023]
[1725699045376,0.16567554,54343.0,54342.0,0.092023]
[1725699045668,0.15646929,54343.0,54342.0,0.092023]
[1725699045864,0.10122769,54343.0,54342.0,0.092023]
[1725699048877,0.092021,54343.0,54342.0,0.092023]
[1725699049366,0.1012276,54343.0,54342.0,0.092023]
[1725699051672,0.092023,54342.0,54341.0,0.18382079]
[1725699051881,0.1012296,54342.0,54341.0,0.32403715]
[1725699052066,0.092023,54342.0,54341.0,0.32403715]
[1725699052879,0.10122959,54342.0,54341.0,0.32403715]
[1725699053179,0.10122959,54342.0,54341.0,0.18382079]
[1725699056276,0.10122959,54342.0,54341.0,0.32403757]
[1725699058681,0.10122959,54342.0,54341.0,0.32403773]
[1725699058984,0.10122959,54342.0,54341.0,0.09179579]
[1725699059374,0.092023,54342.0,54341.0,0.09179579]
[1725699059578,0.00455155,54344.0,54340.0,0.09179579]
[1725699059579,0.092025,54341.0,54340.0,0.09179579]
[1725699059777,0.092025,54341.0,54340.0,0.23201326]
[1725699060174,0.14963164,54341.0,54340.0,0.23201326]
[1725699060575,0.24165664,54341.0,54340.0,0.09179643]
[1725699060774,0.24165664,54341.0,54339.0,0.09179643]
[1725699060775,0.092027,54340.0,54339.0,0.09179643]
[1725699060975,0.10123364,54340.0,54339.0,0.09179643]
[1725699061180,0.092028,54339.0,54338.0,0.09179643]
[1725699061380,0.10123464,54339.0,54338.0,0.23201982]
[1725699061887,0.10123464,54339.0,54338.0,0.32405156]
[1725699062395,0.11423464,54339.0,54338.0,0.32505156]
[1725699064179,0.11423464,54339.0,54338.0,0.09303]
[1725699065086,0.11423512,54339.0,54338.0,0.09303]
[1725699067678,0.11423512,54339.0,54338.0,0.19303]
[1725699068583,0.11423512,54339.0,54338.0,0.24810362]
[1725699068773,0.11423512,54339.0,54338.0,0.19303]
[1725699068977,0.11423512,54339.0,54338.0,0.24810362]
[1725699069487,0.11423512,54339.0,54338.0,0.19303]
[1725699070177,0.11423512,54339.0,54338.0,0.24810362]
[1725699070381,0.11423512,54339.0,54338.0,0.19303]
[1725699070574,0.02220712,54339.0,54338.0,0.19303]
[1725699070782,0.02220712,54339.0,54338.0,1.43714]
[1725699071477,0.03601453,54339.0,54338.0,1.34511]
[1725699071679,0.02220712,54339.0,54338.0,1.41851048]
[1725699072285,0.092015,54347.0,54346.0,0.092016]
[1725699072490,0.10122089,54347.0,54346.0,0.092016]
[1725699072683,0.37737631,54347.0,54346.0,0.092016]
[1725699073895,0.37937631,54347.0,54346.0,0.093016]
[1725699075089,0.38408398,54347.0,54346.0,0.001]
[1725699075291,0.48408398,54347.0,54346.0,0.07437165]
[1725699075487,0.48408398,54347.0,54346.0,0.001]
[1725699075684,0.48408398,54347.0,54346.0,0.07437165]
[1725699076291,0.48408398,54347.0,54346.0,0.001]
[1725699076593,0.48408398,54347.0,54346.0,0.07437165]
[1725699076794,0.38408398,54347.0,54346.0,0.07437165]
[1725699077181,0.38408398,54347.0,54346.0,0.001]
[1725699077789,0.37487809,54347.0,54346.0,0.001]
[1725699078191,0.38408487,54347.0,54346.0,0.001]
[1725699080488,0.09102,54345.0,54342.0,0.092023]
[1725699080690,0.00920678,54344.0,54342.0,0.092023]
[1725699080891,0.00920678,54343.0,54342.0,0.092023]
[1725699081394,0.09202,54344.0,54342.0,0.092023]
[1725699081593,0.00920679,54343.0,54342.0,0.092023]
[1725699081895,0.01120679,54343.0,54342.0,0.093023]
[1725699083497,0.10322779,54343.0,54342.0,0.001]
[1725699083999,0.15122779,54343.0,54342.0,0.001]
[1725699084994,0.142021,54343.0,54342.0,0.001]
[1725699085689,0.15122813,54343.0,54342.0,0.001]
[1725699086101,0.16043526,54343.0,54342.0,0.001]
[1725699086485,0.092025,54341.0,54339.0,0.092028]
[1725699086691,0.00920713,54340.0,54339.0,0.092028]
[1725699087402,0.00820713,54340.0,54339.0,0.192028]
[1725699088094,0.00820713,54340.0,54339.0,0.28377463]
[1725699088095,0.10023413,54340.0,54339.0,0.28377463]
[1725699088294,0.10523413,54340.0,54339.0,0.193028]
[1725699090500,0.10723413,54340.0,54339.0,0.193028]
[1725699091587,0.099027,54340.0,54339.0,0.193028]
[1725699093802,0.099027,54340.0,54339.0,0.093028]
[1725699094196,0.099027,54340.0,54339.0,0.001]
[1725699094890,0.099027,54340.0,54338.0,0.092029]
[1725699095104,0.0356,54339.0,54338.0,0.092029]
[1725699095495,0.04480714,54339.0,54338.0,0.092029]
[1725699096707,0.13683514,54339.0,54338.0,0.092029]
[1725699096889,0.12683514,54339.0,54338.0,0.092029]
[1725699098206,0.12683514,54339.0,54338.0,0.095029]
[1725699099004,0.09000514,54339.0,54338.0,0.095029]
[1725699099804,0.09000514,54339.0,54338.0,0.003]
[1725699100000,0.091033,54337.0,54334.0,0.09659582]
[1725699100302,0.091033,54337.0,54334.0,0.092035]
[1725699100607,0.092035,54335.0,54334.0,0.092035]
[1725699100904,0.091033,54337.0,54334.0,0.092035]
[1725699101292,0.1,54337.0,54334.0,0.092035]
[1725699101992,0.092033,54336.0,54335.0,0.1402265]
[1725699102905,0.092033,54336.0,54334.0,0.092035]
[1725699103403,0.092035,54335.0,54334.0,0.092035]
[1725699103702,0.092037,54334.0,54332.0,0.20207691]
[1725699103908,0.001,54336.0,54334.0,0.1]
[1725699104109,0.001,54336.0,54335.0,0.092035]
[1725699104308,0.001,54336.0,54335.0,0.138835]
[1725699104704,0.09203,54338.0,54336.0,0.092032]
[1725699104898,0.09203,54338.0,54337.0,0.1]
[1725699106894,0.09203,54338.0,54337.0,0.17342467]
[1725699107300,0.09303,54338.0,54337.0,0.17342467]
[1725699108203,0.09303,54338.0,54337.0,0.1]
[1725699109712,0.09303,54338.0,54337.0,0.192032]
[1725699109913,0.09403,54338.0,54337.0,0.192032]
[1725699110302,0.09403,54338.0,54337.0,0.42404021]
[1725699113209,0.09603,54338.0,54337.0,0.42404021]
[1725699113925,0.09603,54338.0,54337.0,0.33225937]
[1725699114214,0.09803,54338.0,54337.0,0.33225656]
[1725699115705,0.09803,54338.0,54337.0,0.23225656]
[1725699117308,0.09803,54338.0,54337.0,0.092032]
[1725699121321,0.09803,54338.0,54335.0,0.05512977]
[1725699121322,0.092033,54336.0,54335.0,0.05512977]
[1725699121516,0.006,54338.0,54332.0,0.07343864]
[1725699121517,0.092038,54334.0,54332.0,0.07343864]
[1725699121724,0.092038,54334.0,54332.0,0.16547764]
[1725699122113,0.092038,54334.0,54332.0,0.092039]
[1725699122623,0.092038,54334.0,54333.0,0.05513735]
[1725699122924,0.192038,54334.0,54333.0,0.05513735]
[1725699123129,0.092042,54331.0,54330.0,0.05513735]
[1725699123315,0.00920794,54331.0,54329.0,0.05513735]
[1725699123516,0.00920794,54330.0,54328.0,0.14718335]
[1725699123813,0.00920794,54329.0,54328.0,0.14718335]
[1725699124026,0.10125294,54329.0,54328.0,0.092046]
[1725699124526,0.092045,54329.0,54328.0,0.092046]
[1725699125319,0.092045,54329.0,54328.0,0.23229536]
[1725699125921,0.00449917,54334.0,54328.0,0.23229536]
[1725699125922,0.00449917,54334.0,54330.0,0.092043]
[1725699126116,0.09204,54332.0,54331.0,0.24024126]
[1725699126627,0.36916347,54338.0,54337.0,0.092032]
[1725699126821,0.09203,54338.0,54337.0,0.192032]
[1725699127013,0.36836636,54338.0,54337.0,0.192032]
[1725699127325,0.36836636,54338.0,54337.0,0.28385161]
[1725699127624,0.09203,54338.0,54337.0,0.28385161]
[1725699128025,0.09203,54338.0,54337.0,0.42407666]
[1725699128722,0.09203,54338.0,54337.0,0.28385161]
[1725699129024,0.10303,54338.0,54337.0,0.28385161]
[1725699129221,0.10303,54338.0,54337.0,0.42407665]
[1725699131616,0.10303,54338.0,54337.0,0.428717]
[1725699131818,0.011,54338.0,54337.0,0.428717]
[1725699132022,0.011,54338.0,54337.0,0.4469343]
[1725699132226,0.011,54338.0,54337.0,0.33689739]
[1725699132427,0.03401484,54338.0,54337.0,0.33689739]
[1725699132726,0.011,54338.0,54337.0,0.33687724]
[1725699133419,0.011,54338.0,54337.0,0.42890924]
[1725699133612,0.03401456,54338.0,54337.0,0.43795795]
[1725699134024,0.011,54338.0,54337.0,0.43795795]
[1725699134425,0.011,54338.0,54337.0,0.42890924]
[1725699136934,0.011,54338.0,54337.0,0.32890924]
[1725699137133,0.011,54338.0,54337.0,0.52060381]
[1725699137525,0.02020577,54338.0,54337.0,0.38039892]
[1725699139035,0.02020577,54338.0,54337.0,0.28870435]
[1725699139428,0.011,54338.0,54337.0,0.28870435]
[1725699139629,0.02020577,54338.0,54337.0,0.28870435]
[1725699140137,0.011,54338.0,54337.0,0.28870435]
[1725699140427,0.02020575,54338.0,54337.0,0.42890811]
[1725699140824,0.02941151,54338.0,54337.0,0.42890811]
[1725699141023,0.02020576,54338.0,54337.0,0.42890811]
[1725699141223,0.02020576,54338.0,54337.0,0.33687611]
[1725699141619,0.02020576,54338.0,54337.0,0.23687611]
[1725699141825,0.02020576,54338.0,54337.0,0.33687611]
[1725699142029,0.02020576,54338.0,54337.0,0.23687611]
[1725699142233,0.1260444,54338.0,54337.0,0.092032]
[1725699142533,0.13525016,54338.0,54337.0,0.092032]
[1725699143334,0.11223576,54338.0,54337.0,0.092032]
[1725699146324,0.10303,54338.0,54337.0,0.092032]
[1725699146725,0.11223696,54338.0,54337.0,0.192032]
[1725699149337,0.10303,54338.0,54337.0,0.192032]
[1725699149721,0.11223697,54338.0,54337.0,0.192032]
[1725699151337,0.11688331,54338.0,54337.0,0.192032]
[1725699151542,0.11688332,54338.0,54337.0,0.192032]
[1725699153030,0.10767634,54338.0,54337.0,0.192032]
[1725699153340,0.11688333,54338.0,54337.0,0.192032]
[1725699154128,0.10767634,54338.0,54337.0,0.192032]
[1725699154325,0.10767634,54338.0,54337.0,0.092032]
[1725699154643,0.10767634,54338.0,54337.0,0.18370885]
[1725699155147,0.10767634,54338.0,54337.0,0.32393298]
[1725699155636,0.09967634,54338.0,54337.0,0.32393298]
[1725699155842,0.13190117,54338.0,54337.0,0.32393298]
[1725699156345,0.13190117,54338.0,54337.0,0.23225613]
[1725699156639,0.10888343,54338.0,54337.0,0.32408195]
[1725699156826,0.10888343,54338.0,54337.0,0.23225613]
[1725699157027,0.10588343,54338.0,54337.0,0.23225613]
[1725699157229,0.10888343,54338.0,54337.0,0.23225613]
[1725699158343,0.10888343,54338.0,54337.0,0.3241055]
[1725699158731,0.10988343,54338.0,54337.0,0.3241055]
[1725699159334,0.10988343,54338.0,54337.0,0.092032]
[1725699160429,0.10523709,54338.0,54337.0,0.092032]
[1725699160632,0.01320709,54338.0,54337.0,0.32410697]
[1725699160940,0.004,54338.0,54337.0,0.34237986]
[1725699161333,0.01320639,54338.0,54337.0,0.2322576]
[1725699161540,0.01320639,54338.0,54337.0,0.34247031]
[1725699161735,0.02701648,54338.0,54337.0,0.34247031]
[1725699161944,0.03622287,54338.0,54337.0,0.34247031]
[1725699162638,0.03622287,54338.0,54337.0,0.092032]
[1725699162947,0.01320639,54338.0,54337.0,0.092032]
[1725699164144,0.004,54338.0,54337.0,0.092032]
[1725699164543,0.01320657,54338.0,54337.0,0.092032]
[1725699168843,0.01320657,54338.0,54337.0,0.1655137]
[1725699170751,0.01320657,54338.0,54337.0,0.2322484]
[1725699171052,0.02301643,54340.0,54339.0,0.092028]
[1725699171247,0.092025,54341.0,54340.0,0.092027]
[1725699171446,0.092025,54341.0,54340.0,0.2322434]
[1725699172748,0.092025,54341.0,54340.0,0.23224394]
[1725699173154,0.099025,54341.0,54340.0,0.23224394]
[1725699175046,0.007,54341.0,54340.0,0.23224394]
[1725699179954,0.099025,54341.0,54340.0,0.30523607]
[1725699182151,0.099025,54341.0,54340.0,0.30524355]
[1725699185653,0.099025,54341.0,54340.0,0.16501913]
[1725699189663,0.007,54341.0,54340.0,0.32018997]
[1725699190251,0.007,54341.0,54340.0,0.41222165]
[1725699190460,0.007,54341.0,54340.0,0.35704613]
[1725699192860,0.007,54341.0,54340.0,0.49726]
[1725699193654,0.00458188,54346.0,54345.0,0.092018]
[1725699193964,0.092014,54348.0,54347.0,0.092015]
[1725699194460,0.27748835,54348.0,54347.0,0.092015]
[1725699194664,0.27748835,54348.0,54347.0,0.30522056]
[1725699194959,0.13921,54350.0,54349.0,0.092011]
[1725699195160,0.13921,54350.0,54349.0,0.16500313]
[1725699195367,0.41365552,54350.0,54349.0,0.16500313]
[1725699197065,0.41826824,54350.0,54349.0,0.16500313]
[1725699197568,0.42426824,54350.0,54349.0,0.16600313]
[1725699198067,0.41826824,54350.0,54349.0,0.16500313]
[1725699198275,0.42226824,54350.0,54349.0,0.16500313]
[1725699202868,0.42226824,54350.0,54349.0,0.23844954]
[1725699203063,0.42226824,54350.0,54349.0,0.23845128]
[1725699203264,0.42226824,54350.0,54349.0,0.16500313]
[1725699204073,0.42226824,54350.0,54349.0,0.23844976]
[1725699205168,0.42226824,54350.0,54349.0,0.14643876]
[1725699205474,0.42226824,54350.0,54349.0,0.07299213]
[1725699205475,0.46756824,54350.0,54349.0,0.07299213]
[1725699206268,1.11157824,54350.0,54349.0,0.07299213]
[1725699206666,0.55957824,54350.0,54349.0,0.07299213]
[1725699207367,0.55957824,54350.0,54349.0,0.12806833]
[1725699207569,0.55957824,54350.0,54349.0,0.12806715]
[1725699207767,0.55957824,54350.0,54349.0,0.07299213]
[1725699208566,1.11157824,54350.0,54349.0,0.07299213]
[1725699208762,0.55957824,54350.0,54349.0,0.07299213]
[1725699209365,0.56657824,54350.0,54349.0,0.07299213]
[1725699210070,0.55557824,54350.0,54349.0,0.07299213]
[1725699210276,0.56657824,54350.0,54349.0,0.07299213]
[1725699215379,0.55557824,54350.0,54349.0,0.07299213]
[1725699215571,0.56457824,54350.0,54349.0,0.07299213]
[1725699215878,0.56457824,54350.0,54349.0,0.14643876]
[1725699216381,0.56557824,54350.0,54349.0,0.14643876]
[1725699216570,0.56557824,54350.0,54349.0,0.07299213]
[1725699218074,0.56657824,54350.0,54349.0,0.07399213]
[1725699218276,0.47456824,54350.0,54349.0,0.07399213]
[1725699221181,0.38206824,54350.0,54349.0,0.07399213]
[1725699222980,0.42712159,54350.0,54349.0,0.07399213]
[1725699225278,0.42712159,54350.0,54349.0,0.16600313]
[1725699225781,0.38206824,54350.0,54349.0,0.16600313]
[1725699227179,0.37106824,54350.0,54349.0,0.16500313]
[1725699227382,0.38106824,54350.0,54349.0,0.16600313]
[1725699228087,0.37106824,54350.0,54349.0,0.16500313]
[1725699228387,0.38206824,54350.0,54349.0,0.16600313]
[1725699232282,0.48206824,54350.0,54349.0,0.16600313]
[1725699234285,0.54651086,54350.0,54349.0,0.16600313]
[1725699234996,0.54651086,54350.0,54349.0,0.39812618]
[1725699235289,0.54651086,54350.0,54349.0,0.39812639]
[1725699235486,0.54651086,54350.0,54349.0,0.39812637]
[1725699235692,0.54651086,54350.0,54349.0,0.07399213]
[1725699235987,0.54651086,54350.0,54349.0,0.30611463]
[1725699236288,0.54651086,54350.0,54349.0,0.16590732]
[1725699236683,0.54651086,54350.0,54349.0,0.07399213]
[1725699237983,0.60298584,54350.0,54349.0,0.07399213]